Cogmind - Beta 16 @@@ ROGUE MODE // 2025.10.29 @ 19:44:01 Player: Rocko1345 Result: Destroyed by Y-54 Guardian with Flak Gun Performance ------------- Evolutions (3) 1500 Regions Visited (7) 1400 Robots Destroyed (22) 110 Value Destroyed (785) 785 Prototype IDs (23) 460 Alien Tech Used (0) 0 Bonus (800) 800 TOTAL SCORE: 5055 Bonus ------- Entered DSFs 500 Aligned with FarCom 300 Cogmind --------- Core Integrity 0/700 Matter 290/300 Energy 92/100 System Corruption 9% Temperature Cool (7) Movement Hovering (60) Location -7/DSF Parts ------- > --- POWER (1) -------- (None) > --- PROPULSION (2) --- Gravmag Array > --- UTILITY (8) ------ Coolant Injector Medium Storage Unit Advanced Targeting Computer Advanced Targeting Computer Advanced Targeting Computer Advanced Targeting Computer > --- WEAPON (2) ------- Powered Hammer > --- INVENTORY (10) --- Flying Fortress v7 Advanced Visual Processing Unit Improved Trap Extractor (0/6) Minigun High-powered Shotgun Remote Datajack Peak State ------------ > --- POWER ------------ Deuterium Engine > --- PROPULSION ------- Light Treads Light Treads > --- UTILITY ---------- Improved Heat Sink Coolant Injector Medium Storage Unit Weight Redist. System Advanced Targeting Computer Advanced Targeting Computer Particle Charger Powered Armor > --- WEAPON ----------- Gatling Laser Beamcaster > --- INVENTORY -------- Flying Fortress v7 Advanced Visual Processing Unit Improved Trap Extractor Improved EM Pulse Cannon Heavy Missile Launcher Remote Datajack Powered Hammer [Rating: 42] Favorites ----------- Power Ion Engine Engine Ion Engine Propulsion Light Treads Treads Light Treads Leg Aluminum Leg Hover Unit Gravmag Array Utility Medium Storage Unit Device Coolant Injector Storage Medium Storage Unit Processor Advanced Targeting Computer Protection Powered Armor Weapon Small Laser Energy Gun Small Laser Energy Cannon Improved EM Pulse Cannon Ballistic Gun Heavy Assault Rifle Launcher Heavy Missile Launcher Impact Weapon Powered Hammer Build | -11 -10 -10 -10 -9 -8 -7 -7 ------- Run | Yrd Mat Min Exi Min Mat Fac DSF Slots Evolved 6 | . . . . . 4 2 . Power . | . . . . . . . . Propulsion . | . . . . . . . . Utility 6 | . . . . . 4 2 . Weapon . | . . . . . . . . Parts Attached 34 | 7 1 . . 10 5 2 9 Power 2 | 1 . . . . 1 . . Engine 2 | 1 . . . . 1 . . Core . | . . . . . . . . Reactor . | . . . . . . . . Propulsion 9 | 2 . . . 4 . . 3 Treads 2 | . . . . 2 . . . Leg 6 | 2 . . . 2 . . 2 Wheel . | . . . . . . . . Hover 1 | . . . . . . . 1 Flight . | . . . . . . . . Utility 12 | 1 1 . . 2 4 . 4 Device 5 | . . . . 2 3 . . Storage 2 | 1 1 . . . . . . Processor 4 | . . . . . . . 4 Hackware . | . . . . . . . . Protection 1 | . . . . . 1 . . Artifact . | . . . . . . . . Weapon 11 | 3 . . . 4 . 2 2 Energy Gun 6 | 3 . . . 3 . . . Energy Cannon 1 | . . . . . . . 1 Ballistic Gun 2 | . . . . 1 . . 1 Ballistic Cannon . | . . . . . . . . Launcher 1 | . . . . . . 1 . Special Weapon . | . . . . . . . . Impact Weapon 1 | . . . . . . 1 . Slashing Weapon . | . . . . . . . . Piercing Weapon . | . . . . . . . . Special Melee Weapon . | . . . . . . . . Unidentified Prototypes . | . . . . . . . . Corrupted Parts 1 | . . . . . . . 1 System Corruption 9 | . . . . . . . 9 Parts Lost 12 | . . . . . . . 12 Power 1 | . . . . . . . 1 Propulsion 4 | . . . . . . . 4 Utility 4 | . . . . . . . 4 Weapon 3 | . . . . . . . 3 Highest Loss Streak 5 | . . . . . . . 5 To Critical Strikes . | . . . . . . . . Average Backups 4 | 1 3 3 3 5 5 6 5 Power . | . . . . . . . . Propulsion 1 | . 2 2 2 2 1 1 1 Utility . | . . . . 1 1 2 2 Weapon 2 | . 1 1 1 1 3 3 1 Tool/Special . | . . . . . . . . Unused Backups 8 | . . . . 4 . . 4 Power . | . . . . . . . . Propulsion 2 | . . . . 1 . . 1 Utility 2 | . . . . 1 . . 1 Weapon 3 | . . . . 2 . . 1 Tool/Special 1 | . . . . . . . 1 Average Slot Usage (%) 86 | . 85 85 85 99 84 84 72 Engine 10 | . 14 14 14 14 9 7 2 Treads 9 | . . . . 9 18 15 3 Leg 11 | . 28 28 28 18 . . 5 Device 13 | . . . . 13 21 30 12 Storage 11 | . 14 14 14 14 9 7 7 Processor 2 | . . . . . . . 22 Protection 3 | . . . . . 8 7 2 Energy Gun 20 | . 28 28 28 23 18 12 5 Ballistic Gun 1 | . . . . 4 . . 2 Peak Build Rating 42 | 6 7 6 9 22 36 36 42 Average Rating 21 | 4 6 6 7 16 30 35 33 On Entrance 15 | . 6 6 6 9 22 36 36 Avg Prop Armor Cover (%) 8 | . . . . 11 . . 6 Naked Turns . | . . . . . . . . Heaviest Build 43 | 12 17 17 17 25 43 43 43 Greatest Support 46 | 20 20 20 20 40 46 46 46 Greatest Overweight (x) 6 | . . . . 1 1 . 6 Average Overweight (x) . | . . . . . . . . Largest Inventory Capacity 10 | 8 10 10 10 10 10 10 10 Average Capacity 9 | 6 9 10 10 10 10 10 10 Most Carried 10 | 3 3 3 7 10 9 10 10 Average Carried 7 | 1 3 3 5 9 8 9 8 Final Capacity 10 | 8 10 10 10 10 10 10 10 Final Carried 10 | 3 3 3 7 10 9 10 9 Class Distribution -------------------- 93% | Mutant 6% | Scavenger-Mutant Dominant Class ---------------- Mutant | -10/Materials Mutant | -10/Mines Mutant | -10/Exiles Mutant | -9/Mines Mutant | -8/Materials Mutant | -7/Factory Mutant | -7/DSF Resources | -11 -10 -10 -10 -9 -8 -7 -7 ----------- Run | Yrd Mat Min Exi Min Mat Fac DSF Matter Collected 683 | 130 . 66 . 274 48 . 165 Remotely . | . . . . . . . . Salvage Created 861 | . . . . 291 167 . 403 Parts 46 | . . . . 14 15 . 17 Haulers Intercepted . | . . . . . . . . Recyclers Shooed . | . . . . . . . . Parts Field Recycled . | . . . . . . . . Retrieved Matter . | . . . . . . . . Parts Self-Destructed . | . . . . . . . . Prevented . | . . . . . . . . Parts Restored . | . . . . . . . . Kills | -11 -10 -10 -10 -9 -8 -7 -7 ------- Run | Yrd Mat Min Exi Min Mat Fac DSF Combat Hostiles Destroyed 21 | . . . . 9 5 . 7 Melee 2 | . . . . . . . 2 Guns 16 | . . . . 9 5 . 2 AOE 1 | . . . . . . . 1 Classes Destroyed 7 | . . . . 2 3 . 2 Builder 1 | . . . . . 1 . . Swarmer 6 | . . . . 3 3 . . Grunt 9 | . . . . 6 . . 3 Sentry 1 | . . . . . 1 . . Specialist 3 | . . . . . . . 3 Hunter 1 | . . . . . 1 . . Heavy 1 | . . . . . . . 1 Best Kill Streak 5 | . . . . 5 3 . 3 Combat Bots Only 5 | . . . . 5 3 . 3 Max Kills in Single Turn 2 | . . . . 2 1 . 1 Gunslinging 1 | . . . . 1 . . . Exploded 1 | . . . . . . . 1 Melee 1 | . . . . . . . 1 Uniques/NPCs Destroyed . | . . . . . . . . Combat | -11 -10 -10 -10 -9 -8 -7 -7 -------- Run | Yrd Mat Min Exi Min Mat Fac DSF Hostile Shots Fired 253 | . . . . 41 20 . 192 Missed 93 | . . . . 8 8 . 77 Hits 160 | . . . . 33 12 . 115 Projectile 160 | . . . . 33 12 . 115 Critical Strikes 7 | . . . . . . . 7 Damage Taken 2540 | . . . . 384 141 . 2015 Core 837 | . . . . 92 44 . 701 Absorbed by Shields . | . . . . . . . . Core Remaining (%) 85 | 100 . . . 63 92 . . Volleys Fired 52 | . 6 . . 20 7 . 19 Largest 2 | . 2 . . 2 2 . 2 Hottest 155 | . 80 . . 103 155 . 155 Shots Fired 97 | . 12 . . 40 13 . 32 Gun 96 | . 12 . . 40 13 . 31 Cannon . | . . . . . . . . Launcher 1 | . . . . . . . 1 Special . | . . . . . . . . Kinetic 13 | . . . . 10 . . 3 Thermal 83 | . 12 . . 30 13 . 28 Explosive 1 | . . . . . . . 1 Electromagnetic . | . . . . . . . . Robot Hit Streak 29 | . 3 . . 9 3 . 29 Robot Miss Streak 6 | . 5 . . 6 3 . 2 Penetration Max . | . . . . . . . . Secondary Targets 3 | . . . . 2 1 . . Max Gunslinging Chain 1 | . . . . 1 1 . . Shots Hit Robots 87 | . 6 . . 32 10 . 39 Core Hits 37 | . 1 . . 16 7 . 13 Critical Kills . | . . . . . . . . Critical Parts Destroyed 2 | . . . . . . . 2 Critical Strikes 3 | . . . . . . . 3 Burn 1 | . . . . . . . 1 Smash 2 | . . . . . . . 2 Melee Attacks 14 | . . . . . . 1 13 Impact 14 | . . . . . . 1 13 Slashing . | . . . . . . . . Piercing . | . . . . . . . . Sneak Attacks . | . . . . . . . . Combat Hostiles . | . . . . . . . . Follow-up Attacks . | . . . . . . . . Damage Inflicted 1960 | . 67 6 . 408 204 . 1275 Guns 1353 | . 67 . . 408 204 . 674 Cannons . | . . . . . . . . Explosions 107 | . . . . . . . 107 Melee 494 | . . . . . . . 494 Ramming 6 | . . 6 . . . . . Kinetic 178 | . . . . 102 . . 76 Thermal 1175 | . 67 . . 306 204 . 598 Explosive 107 | . . . . . . . 107 Electromagnetic . | . . . . . . . . Impact 494 | . . . . . . . 494 Slashing . | . . . . . . . . Piercing . | . . . . . . . . Highest Corruption 9 | . 2 2 2 2 . . 9 Average Corruption 2 | . 2 2 2 2 . . 9 Corruption Purged . | . . . . . . . . Corruption Blocked . | . . . . . . . . Effects 26 | . 1 2 4 13 . . 6 Message Errors 5 | . . . . 4 . . 1 Matter Fused 8 | . . . 1 6 . . 1 Heat Flow Errors 3 | . 1 . 1 1 . . . Energy Discharges 3 | . . 1 . 1 . . 1 Parts Rejected 1 | . . . . . . . 1 Data Loss (minor) 2 | . . 1 . . . . 1 Data Loss (major) 1 | . . . . 1 . . . Alerts 3 | . . . 2 . . . 1 Overload Shots . | . . . . . . . . Overflow Damage 167 | . . . . . . . 167 Projectiles . | . . . . . . . . Explosions . | . . . . . . . . Melee 167 | . . . . . . . 167 Knockbacks 2 | . . . . . . . 2 Impact 2 | . . . . . . . 2 Kinetic . | . . . . . . . . Secondary . | . . . . . . . . Self-Inflicted Damage . | . . . . . . . . Shots . | . . . . . . . . Rammed . | . . . . . . . . Targets Rammed 1 | . . 1 . . . . . Kicked 1 | . . 1 . . . . . Crushed . | . . . . . . . . Highest Temperature 277 | . 205 . 277 179 119 . 132 Average Temperature 75 | . 52 . 140 93 48 . 45 Received Heat Transfer 594 | . . . . 171 9 . 414 Effects 1 | . 1 . . . . . . Interference 1 | . 1 . . . . . . Siege Activations . | . . . . . . . . Martial Activations . | . . . . . . . . Shielding Activations . | . . . . . . . . Robots Disrupted . | . . . . . . . . Combat Hostiles . | . . . . . . . . Robots Corrupted 2 | . . . . . . . 2 Combat Hostiles 2 | . . . . . . . 2 Parts Fried . | . . . . . . . . Impact Corruptions 4 | . . . . . . . 4 Robots Melted . | . . . . . . . . Combat Hostiles . | . . . . . . . . Parts Melted 2 | . . . . 2 . . . Heat Transferred 2510 | . 150 . . 695 372 . 1293 Parts Sabotaged . | . . . . . . . . Parts Stolen . | . . . . . . . . Parts Stripped . | . . . . . . . . Power Chain Reactions . | . . . . . . . . Alert | -11 -10 -10 -10 -9 -8 -7 -7 ------- Run | Yrd Mat Min Exi Min Mat Fac DSF Maximum Alert Level . | . . . . . . . . Low Security (%) 100 | 100 100 100 . 100 100 100 100 Level 1 . | . . . . . . . . Level 2 . | . . . . . . . . Level 3 . | . . . . . . . . Level 4 . | . . . . . . . . Level 5 . | . . . . . . . . High Security . | . . . . . . . . Max Security . | . . . . . . . . Peak Influence 180 | . . . . 102 70 22 180 Initial 3 | . . . . . . . 3 Average 19 | . . . . 24 10 1 71 Influence Increases 651 | . . . . 217 167 27 240 Destroy 0b10 Robot/C 420 | . . . . 180 100 . 140 Destroy 0b10 Robot/NC 15 | . . . . . 5 . 10 Destroy Leader 80 | . . . . 30 30 . 20 Successful Hack 36 | . . . . 7 17 12 . Disable Machine 15 | . . . . . . 15 . Destroy Structure 10 | . . . . . . . 10 Lose Combat Pursuer 75 | . . . . . 15 . 60 Influence Decreases 501 | . . . . 217 167 22 95 Entered New Map 2 | . . . . . . . 2 Time Decay 406 | . . . . 217 167 22 . Lost Part 93 | . . . . . . . 93 Squads Dispatched 4 | . . . . 2 . . 2 Investigation 2 | . . . . 2 . . . Extermination . | . . . . . . . . Reinforcement 2 | . . . . . . . 2 Assault . | . . . . . . . . Garrison . | . . . . . . . . Intercept . | . . . . . . . . Searches Triggered . | . . . . . . . . Construction Impeded . | . . . . . . . . Haulers Reinforced . | . . . . . . . . Active Scanning Responses . | . . . . . . . . Cargo Convoy Interrupts . | . . . . . . . . Stealth | -11 -10 -10 -10 -9 -8 -7 -7 --------- Run | Yrd Mat Min Exi Min Mat Fac DSF Distress Signals . | . . . . . . . . Communications Jammed . | . . . . . . . . Distress Signals . | . . . . . . . . Times Spotted 34 | . 3 . . 12 5 . 14 Peak Tracking Total 3 | . 3 . . 3 3 . 3 Tactical Retreats 4 | . . . . . 1 . 3 Traps | -11 -10 -10 -10 -9 -8 -7 -7 ------- Run | Yrd Mat Min Exi Min Mat Fac DSF Traps Triggered 2 | . 1 . . 1 . . . Indirectly . | . . . . . . . . Trap Hack Attempts . | . . . . . . . . Triggered . | . . . . . . . . Disarmed . | . . . . . . . . Reprogrammed . | . . . . . . . . Reused . | . . . . . . . . Traps Extracted . | . . . . . . . . Installed . | . . . . . . . . Triggered . | . . . . . . . . Most Traps Carried 3 | . . . . 3 . . . Machines | -11 -10 -10 -10 -9 -8 -7 -7 ---------- Run | Yrd Mat Min Exi Min Mat Fac DSF Machines Disabled 1 | . . . . . . 1 . Max in Single Turn 1 | . . . . . . 1 . Machines Repaired . | . . . . . . . . Machines Dismantled . | . . . . . . . . Machines Sabotaged . | . . . . . . . . Overloaded Fab Kills . | . . . . . . . . Hacking | -11 -10 -10 -10 -9 -8 -7 -7 --------- Run | Yrd Mat Min Exi Min Mat Fac DSF Machines Accessed 10 | . 1 . 1 3 3 2 . Terminals 7 | . 1 . . 1 3 2 . Fabricators . | . . . . . . . . Repair Stations . | . . . . . . . . Recycling Units . | . . . . . . . . Scanalyzers . | . . . . . . . . Garrison Access . | . . . . . . . . Total Hacks 26 | . 3 . 1 6 9 7 . Successful 16 | . 2 . 1 4 7 2 . Failed 10 | . 1 . . 2 2 5 . Catastrophic 1 | . . . . . 1 . . Database Lockouts . | . . . . . . . . Manual 17 | . 1 . 1 2 9 4 . Terminals 23 | . 3 . . 4 9 7 . Fabricators . | . . . . . . . . Repair Stations . | . . . . . . . . Recycling Units . | . . . . . . . . Scanalyzers . | . . . . . . . . Garrison Access . | . . . . . . . . Terminal Hacks 12 | . 2 . 1 4 3 2 . Record 1 | . . . . 1 . . . Robot Analysis 1 | . 1 . . . . . . Open Door 2 | . . . . 2 . . . Open DSF 1 | . . . . . . 1 . Terminal Index 1 | . . . . . 1 . . Locate Traps 1 | . . . . . 1 . . Surveillance Status 1 | . 1 . . . . . . Registered Components 1 | . . . . . . 1 . Zone Layout 2 | . . . . 1 1 . . Proto ID Catalog 1 | . . . 1 . . . . Fabricator Hacks . | . . . . . . . . Repair Station Hacks . | . . . . . . . . Recycling Unit Hacks . | . . . . . . . . Scanalyzer . | . . . . . . . . Garrison Access Hacks . | . . . . . . . . Unauthorized Hacks 4 | . . . . . 4 . . Terminals 4 | . . . . . 4 . . Track 1 | . . . . . 1 . . Botnet 2 | . . . . . 2 . . Operators 1 | . . . . . 1 . . Fabricators . | . . . . . . . . Repair Stations . | . . . . . . . . Recycling Units . | . . . . . . . . Scanalyzers . | . . . . . . . . Garrison Access . | . . . . . . . . Data Cores Recovered . | . . . . . . . . Used . | . . . . . . . . Hacking Detections 5 | . 1 . . 1 2 1 . Full Trace Events 1 | . . . . 1 . . . Feedback Events . | . . . . . . . . Feedback Blocked . | . . . . . . . . Robot Schematics Acquired . | . . . . . . . . Robots Built . | . . . . . . . . Authchips . | . . . . . . . . Time . | . . . . . . . . Total Robot Build Rating . | . . . . . . . . Part Schematics Acquired . | . . . . . . . . Parts Built . | . . . . . . . . Authchips . | . . . . . . . . Time . | . . . . . . . . Total Part Build Rating . | . . . . . . . . Part Studies Acquired . | . . . . . . . . Parts Repaired . | . . . . . . . . Time . | . . . . . . . . Parts Recycled . | . . . . . . . . Recycled Matter . | . . . . . . . . Retrieved Matter . | . . . . . . . . Retrieved Components . | . . . . . . . . Parts Scanalyzed . | . . . . . . . . Part Schematics Acquired . | . . . . . . . . Parts Damaged . | . . . . . . . . Bothacking | -11 -10 -10 -10 -9 -8 -7 -7 ------------ Run | Yrd Mat Min Exi Min Mat Fac DSF Used RIF Installer . | . . . . . . . . Robots Hacked . | . . . . . . . . Non-combat . | . . . . . . . . Combat . | . . . . . . . . Robot Hacks Applied . | . . . . . . . . Relay Couplers Released . | . . . . . . . . Fabnet Peak Effective % . | . . . . . . . . Robots Rewired . | . . . . . . . . Allies Hacked . | . . . . . . . . Hacks Repelled . | . . . . . . . . Allies | -11 -10 -10 -10 -9 -8 -7 -7 -------- Run | Yrd Mat Min Exi Min Mat Fac DSF Total Allies . | . . . . . . . . Largest Group . | . . . . . . . . Highest-Rated Group . | . . . . . . . . Highest-Rated Ally . | . . . . . . . . Total Orders . | . . . . . . . . Ally Attacks . | . . . . . . . . Total Damage . | . . . . . . . . Kills . | . . . . . . . . Allies Corrupted . | . . . . . . . . Allies Melted . | . . . . . . . . Intel | -11 -10 -10 -10 -9 -8 -7 -7 ------- Run | Yrd Mat Min Exi Min Mat Fac DSF Active Infowar (turns) . | . . . . . . . . Robot Analysis Total 1 | . 1 . . . . . . Derelict Logs Recovered 1 | . . 1 . . . . . Drone Launches . | . . . . . . . . Drone Recoveries . | . . . . . . . . Exploration | -11 -10 -10 -10 -9 -8 -7 -7 ------------- Run | Yrd Mat Min Exi Min Mat Fac DSF Turns Passed 3515 | 80 166 219 467 817 1172 226 368 Spaces Moved 2039 | 58 116 182 388 440 550 137 168 Core 27 | 4 . . . . . . 23 Treads 878 | . . . . 161 550 137 30 Legs 1106 | 54 116 182 388 279 . . 87 Wheels . | . . . . . . . . Hover 28 | . . . . . . . 28 Flight . | . . . . . . . . Fastest Speed 50 | 50 120 120 120 120 160 160 60 Average Speed 150 | 115 120 120 120 159 183 160 146 Slowest Speed 350 | 120 120 120 120 240 240 160 350 Overloaded Moves . | . . . . . . . . Propulsion Burnouts . | . . . . . . . . Robots Hopped . | . . . . . . . . Potential Cave-ins . | . . . . . . . . Cave-ins Triggered . | . . . . . . . . Exploration Rate (%) 44 | 4 22 66 87 68 25 5 82 Regions Visited 7 Branch Regions 3 Pre-discovered Areas 1 | . . . . 1 . . . Known Exits Taken 1 | . . . . . . 1 . Unknown Exits Taken 6 | 1 1 1 1 1 1 . . Scrap Searched 3 | . . 1 . 2 . . . Spaces Dug . | . . . . . . . . Terrain Destroyed 10 | . . . . . . . 10 Melee . | . . . . . . . . Projectile . | . . . . . . . . AOE 10 | . . . . . . . 10 Terrain Rammed . | . . . . . . . . Walls Destroyed . | . . . . . . . . Machines Disabled . | . . . . . . . . Actions | -11 -10 -10 -10 -9 -8 -7 -7 --------- Run | Yrd Mat Min Exi Min Mat Fac DSF Total 2352 | 67 131 182 389 519 697 141 226 Wait 170 | . 8 . . 18 134 . 10 Move 2032 | 57 115 181 387 439 549 136 168 Hop . | . . . . . . . . Pick Up 22 | 3 . . 1 15 1 1 1 Fast Attach 22 | 6 1 . . 1 2 . 12 Attach 4 | . . . . . 2 . 2 Detach . | . . . . . . . . Swap 16 | 1 . . . 10 1 3 1 Drop 18 | . 1 . . 16 1 . . Fire 52 | . 6 . . 20 7 . 19 Melee 14 | . . . . . . 1 13 Ram . | . . . . . . . . Kick 1 | . . 1 . . . . . Crush . | . . . . . . . . Escape Stasis . | . . . . . . . . Rewire 1 | . . . 1 . . . . Trap . | . . . . . . . . Miscellaneous . | . . . . . . . . Route ------- -11/Scrapyard -10/Materials -10/Mines (discovered 2 exits: [*Mat] / *Exi) -10/Exiles -9/Mines -8/Materials -7/Factory -7/DSF History --------- Turn | Location | Event 3 | -11/Scrapyard | Discovered new exit (range 16) 81 | -11/Scrapyard | Entered Materials 118 | -10/Materials | Discovered new exit (range 13) 205 | -10/Materials | Met 8R-AWN 247 | -10/Materials | Entered Mines 249 | -10/Mines | Followed 8R-AWN into the Mines 253 | -10/Mines | Learned Materials emergency access door positions 301 | -10/Mines | Build established: Mutant 454 | -10/Mines | Discovered new exit (range 10) 460 | -10/Mines | Discovered new exit (range 5) 466 | -10/Mines | Entered Exiles 494 | -10/Exiles | Welcomed by 8R-AWN 516 | -10/Exiles | Met EX-HEX 572 | -10/Exiles | Met EX-BIN 586 | -10/Exiles | Aligned with FarCom system 587 | -10/Exiles | Given EX-Vault access code 617 | -10/Exiles | Opened EX-Vault 626 | -10/Exiles | Found Flying Fortress v7 669 | -10/Exiles | Warned to stay clear of 0b10 Research branches 710 | -10/Exiles | Met EX-DEC 751 | -10/Exiles | Visited The Gauntlet 921 | -10/Exiles | Discovered new exit (range 10) 933 | -10/Exiles | Left Exiles lab with Flying Fortress v7 933 | -10/Exiles | Entered Mines 1071 | -9/Mines | Joined a pair of Derelicts in attacking an 0b10 outpost 1296 | -9/Mines | Met a Derelict shopkeep closing up shop 1448 | -9/Mines | Found a hidden stash of uninstalled traps 1615 | -9/Mines | Learned location of Storage (-9) 1671 | -9/Mines | Discovered new exit (range 14) 1697 | -9/Mines | Met a Derelict who couldn't figure out how to use a Trap Extractor 1728 | -9/Mines | Found Powered Armor 1750 | -9/Mines | Entered Materials 1750 | -8/Materials | Evolved 4 slots: Utility x4 2826 | -8/Materials | Discovered new exit (range 16) 2922 | -8/Materials | Entered Factory 2922 | -7/Factory | Evolved 2 slots: Utility x2 3147 | -7/Factory | Identified exit to DSF 3148 | -7/Factory | Entered DSF 3214 | -7/DSF | Additional patrols routed to DSF 3277 | -7/DSF | Lost 5 parts (2n3u) 3315 | -7/DSF | Lost 4 parts (1p1u2w) 3358 | -7/DSF | Core integrity fell below 50% 3401 | -7/DSF | Core integrity fell below 20% 3516 | -7/DSF | Destroyed by Y-54 Guardian with Flak Gun Last Messages --------------- 03449_ Acquired 7 matter. 03453_ Acquired 6 matter. 03453_ H-61 Shepherd destroyed. 03453_ A-02 Transporter destroyed. 03465_ System corrupted: IFF burst signal emitted. 03475_ Flexi-carbon Leg destroyed. 03480_ Acquired 13 matter. 03489_ Hvy. Missile Launcher destroyed. 03492_ VSS Leg destroyed. 03494_ System corrupted: Component data lost. 03497_ Acquired Gravmag Array. 03499_ A-02 Transporter destroyed. 03503_ C-30 ARC bursts open, deploying its payload. 03503_ H-55 Commando unfolds itself. 03510_ Acquired 10 matter. 03512_ System corrupted: Coolant Injector rejected. 03512_ Acquired Coolant Injector. 03515_ C-30 ARC bursts open, deploying its payload. 03515_ H-55 Commando unfolds itself. 03515_ Slug penetrates Wall. Map ----- +----------------------------------------------------+ | | | | | ?????????????????????????????????????????? | | ?????????????????????????????????????????? | | ?????????????????????????????????????????? | | ?##??????????????????????????????????????? | | ?""#??????????????????????????""?????????? | | ?#"#?????????????????????????#"#?????????? | | ##"##???????#########???????##"####??????? | | """"######### ==^= #########"""""#??????? | | """"##!!#!!!# ^^^= #===#==##"""""#??????? | | " =%= ""##"????? | | " [* % """""????? | | " !%##!!#!!!### ### #==## ""##?????? | | # ###!!#!!!### ### #==### ###??????? | | # ########## !!########## ##???????? | | ! !% #????### !!#??????# =#???????? | | ! #????? / !!#??????# =#???????? | | # ###??????### ###??????### ##???????? | | !% !!#??????#!! !!#??????# =#???????? | | ! !!#??????#!! !#??????# =#???????? | | ! !!#??????#!! !#??????# =#???????? | | # ########### ########### ##???????? | | ## #!!!# =##!!!#!!!## !!#??????? | | "" "!!!##%Y==% #!!!#!!!## !!#??????? | | % =!*%!! @ #??????? | | % ] #??????? | | % = #??????? | | ## #***# !% !!!#===##h% #??????? | | ## #***### ###!!!#===#? #??????? | | ####?##########! ###########? ###??????? | | ????????????#!!% =#????????? ????????? | | ????????????#!!! ==#????????? ????????? | | ????????????#!! ==#????????? C ????????? | | ????????????### ###????????? #????????? | | ????????????#!! #????????? ?????????? | | ????????????#!! #????????????????????? | | ????????????#!! #????????????????????? | | ????????????### ###????????????????????? | | ????????????### h### #????????????????? | | ????????????# ???????????? | | ????????????# "%" ???????????? | | ????????????# #///#//##"???????????? | | ????????????# #?###????????????????? | | ????????????#########????????????????????? | | ?????????????????????????????????????????? | | ?????????????????????????????????????????? | | ?????????????????????????????????????????? | | ?????????????????????????????????????????? | | ?????????????????????????????????????????? | +----------------------------------------------------+ Best States ------------- Heat Dissipation 48 Coolant Potential 65 Energy Generation 14 Energy Capacity 275 Matter Stores 300 Matter Capacity 300 Sight Range 16 Terrain Scan Density 10 Additional Mass Support 6 Armor Coverage 400 Evasion (%) 55 Targeting Accuracy 32 Recoil Reduction 2 Particle Charging 15 Item Schematics ----------------- None Robot Schematics ------------------ None Fabricated ------------ Nothing Repaired ---------- Nothing Studied --------- None Alien Tech Used ----------------- None Achievements -------------- Follow The Leader Challenges ------------ None Game ------ Seed MultireflexBoreMegatreads Manual? 0 Play Time 00:29:37 Cumulative 213.0 hours Start 2025.10.29 @ 19:09:15 End 2025.10.29 @ 19:44:01 Sessions 1 Manual Loads 0 Difficulty Rogue Special Mode None Game No. 257 Rogue 83 Adventurer 174 Explorer 0 Win Type - Total 1 Types 1/0/0/0/0/0/0/0/0/0 Lore% 55 Gallery% 58 Achievement% 39 Wizard Run 0 Options --------- Layout 0 ASCII 0 Keyboard 1 Movement Numpad Keybinds 0 Fullscreen 1 Font 18/Terminus Map View 76x50 Zoom Use 0% Tactical HUD 1 Map Filters NONE Filters NONE Steam 1 RUN: 339cae27-783f-4933-9304-2f1f3a7de7df